[Event "Titled Tuesday Blitz November 30 2021"]
[White "Yilmaz, Mustafa"]
[Black "Onyshchuk, Volodymyr"]
[WhiteFideId "6302718"]
[BlackFideId "14114038"]
[WhiteElo "2518"]
[BlackElo "2603"]
[Result "1-0"]
[Round "10"]
[TimeControl "180+1"]
[Date "2021.11.30"]
[WhiteClock "0:00:51"]
[BlackClock "0:01:27"]

1. d4 {[%clk 0:03:00]}  d6 {[%clk 0:03:00]} 2. Nf3 {[%clk 0:03:00]}  g6 {[%clk 0:03:00]} 3. c4 {[%clk 0:02:56]}  Bg7 {[%clk 0:03:01]} 4. Nc3 {[%clk 0:02:57]}  e5 {[%clk 0:03:01]} 5. e4 {[%clk 0:02:53]}  exd4 {[%clk 0:03:00]} 6. Nxd4 {[%clk 0:02:52]}  Nc6 {[%clk 0:03:01]} 7. Be3 {[%clk 0:02:52]}  Nge7 {[%clk 0:03:01]} 8. Be2 {[%clk 0:02:52]}  O-O {[%clk 0:03:02]} 9. O-O {[%clk 0:02:48]}  f5 {[%clk 0:03:01]} 10. Nxc6 {[%clk 0:02:46]}  bxc6 {[%clk 0:02:58]} 11. Qd2 {[%clk 0:02:40]}  c5 {[%clk 0:02:49]} 12. Rad1 {[%clk 0:02:33]}  Nc6 {[%clk 0:02:44]} 13. Qd5+ {[%clk 0:02:30]}  Kh8 {[%clk 0:02:42]} 14. Qxc6 {[%clk 0:02:29]}  Rb8 {[%clk 0:02:42]} 15. Nb5 {[%clk 0:02:02]}  f4 {[%clk 0:02:25]} 16. Bc1 {[%clk 0:01:55]}  Rf7 {[%clk 0:02:24]} 17. Qxc5 {[%clk 0:01:50]}  Bb7 {[%clk 0:02:11]} 18. Qxa7 {[%clk 0:01:45]}  Bxe4 {[%clk 0:02:08]} 19. Nxd6 {[%clk 0:01:42]}  cxd6 {[%clk 0:01:55]} 20. Qxf7 {[%clk 0:01:40]}  Qg5 {[%clk 0:01:43]} 21. f3 {[%clk 0:01:31]}  Bf5 {[%clk 0:01:43]} 22. Rxd6 {[%clk 0:01:24]}  Rf8 {[%clk 0:01:39]} 23. Qd5 {[%clk 0:01:22]}  h5 {[%clk 0:01:35]} 24. Bd3 {[%clk 0:01:07]}  Re8 {[%clk 0:01:29]} 25. Bxf5 {[%clk 0:01:05]}  gxf5 {[%clk 0:01:29]} 26. Re6 {[%clk 0:00:58]}  Rd8 {[%clk 0:01:27]} 27. Bxf4 {[%clk 0:00:51]} 1-0


[Site "https://www.chess.com"]

[Event "Titled Tuesday Blitz November 30 2021"]
[White "Zhigalko, Sergei"]
[Black "Donchenko, Alexander"]
[WhiteFideId "13502956"]
[BlackFideId "24603295"]
[WhiteElo "2662"]
[BlackElo "2490"]
[Result "1-0"]
[Round "10"]
[TimeControl "180+1"]
[Date "2021.11.30"]
[WhiteClock "0:00:06"]
[BlackClock "0:00:38"]

1. e4 {[%clk 0:03:00]}  c6 {[%clk 0:03:00]} 2. d4 {[%clk 0:03:01]}  d5 {[%clk 0:03:01]} 3. e5 {[%clk 0:03:01]}  Bf5 {[%clk 0:03:01]} 4. Nf3 {[%clk 0:03:02]}  e6 {[%clk 0:03:01]} 5. Be2 {[%clk 0:03:03]}  c5 {[%clk 0:03:02]} 6. Be3 {[%clk 0:03:03]}  Qb6 {[%clk 0:03:02]} 7. Nc3 {[%clk 0:03:00]}  Nc6 {[%clk 0:03:02]} 8. dxc5 {[%clk 0:03:00]}  Bxc5 {[%clk 0:03:01]} 9. Bxc5 {[%clk 0:03:01]}  Qxc5 {[%clk 0:03:00]} 10. Nb5 {[%clk 0:03:02]}  Nge7 {[%clk 0:02:55]} 11. Nc7+ {[%clk 0:02:50]}  Kd7 {[%clk 0:02:55]} 12. Nxa8 {[%clk 0:02:51]}  Rxa8 {[%clk 0:02:55]} 13. c3 {[%clk 0:02:45]}  Be4 {[%clk 0:02:52]} 14. O-O {[%clk 0:02:41]}  Bxf3 {[%clk 0:02:51]} 15. Bxf3 {[%clk 0:02:42]}  Nxe5 {[%clk 0:02:51]} 16. Re1 {[%clk 0:02:43]}  N7c6 {[%clk 0:02:49]} 17. Qe2 {[%clk 0:02:18]}  Ke7 {[%clk 0:02:46]} 18. Rad1 {[%clk 0:02:17]}  Kf8 {[%clk 0:02:43]} 19. g3 {[%clk 0:02:08]}  a5 {[%clk 0:02:40]} 20. Bg2 {[%clk 0:02:02]}  a4 {[%clk 0:02:40]} 21. Qh5 {[%clk 0:01:56]}  Ng6 {[%clk 0:02:26]} 22. Qxh7 {[%clk 0:01:41]}  a3 {[%clk 0:02:26]} 23. b4 {[%clk 0:00:52]}  Qxc3 {[%clk 0:02:25]} 24. h4 {[%clk 0:00:53]}  Nxb4 {[%clk 0:02:04]} 25. h5 {[%clk 0:00:46]}  Ne7 {[%clk 0:02:04]} 26. Qh8+ {[%clk 0:00:40]}  Ng8 {[%clk 0:02:03]} 27. h6 {[%clk 0:00:41]}  Nd3 {[%clk 0:01:30]} 28. h7 {[%clk 0:00:29]}  Ke7 {[%clk 0:01:26]} 29. Rf1 {[%clk 0:00:18]}  Nf6 {[%clk 0:01:13]} 30. Qxa8 {[%clk 0:00:17]}  Nxh7 {[%clk 0:01:14]} 31. Qxb7+ {[%clk 0:00:17]}  Kf6 {[%clk 0:01:14]} 32. Qb1 {[%clk 0:00:12]}  Ne5 {[%clk 0:00:59]} 33. Qxh7 {[%clk 0:00:12]}  Qb2 {[%clk 0:01:00]} 34. Qh4+ {[%clk 0:00:11]}  Kg6 {[%clk 0:00:57]} 35. Qd4 {[%clk 0:00:08]}  Qb8 {[%clk 0:00:54]} 36. Rfe1 {[%clk 0:00:07]}  Nc4 {[%clk 0:00:54]} 37. Rb1 {[%clk 0:00:06]}  Qc7 {[%clk 0:00:51]} 38. Rbc1 {[%clk 0:00:06]}  Qa5 {[%clk 0:00:50]} 39. Qc3 {[%clk 0:00:05]}  Qb6 {[%clk 0:00:49]} 40. Bf1 {[%clk 0:00:05]}  Nd6 {[%clk 0:00:48]} 41. Qe3 {[%clk 0:00:05]}  Qb2 {[%clk 0:00:47]} 42. Qe2 {[%clk 0:00:05]}  Qb4 {[%clk 0:00:43]} 43. Qd3+ {[%clk 0:00:06]}  Kh6 {[%clk 0:00:41]} 44. Qc3 {[%clk 0:00:06]}  Qb6 {[%clk 0:00:38]} 45. Qe3+ {[%clk 0:00:06]} 1-0


[Site "https://www.chess.com"]

[Event "Titled Tuesday Blitz November 30 2021"]
[White "Atakhan, Abtin"]
[Black "Nikologorskiy, Konstantin"]
[WhiteFideId "22502203"]
[BlackFideId "24111708"]
[WhiteElo "2119"]
[BlackElo "2346"]
[Result "1-0"]
[Round "11"]
[TimeControl "180+1"]
[Date "2021.11.30"]
[WhiteClock "0:00:04"]
[BlackClock "0:00:02"]

1. e4 {[%clk 0:02:55]}  e6 {[%clk 0:02:56]} 2. d4 {[%clk 0:02:55]}  d5 {[%clk 0:02:56]} 3. Nc3 {[%clk 0:02:55]}  Bb4 {[%clk 0:02:55]} 4. e5 {[%clk 0:02:54]}  c5 {[%clk 0:02:55]} 5. a3 {[%clk 0:02:53]}  Bxc3+ {[%clk 0:02:55]} 6. bxc3 {[%clk 0:02:54]}  Ne7 {[%clk 0:02:55]} 7. h4 {[%clk 0:02:51]}  Nbc6 {[%clk 0:02:55]} 8. h5 {[%clk 0:02:49]}  h6 {[%clk 0:02:50]} 9. Rb1 {[%clk 0:02:45]}  Qa5 {[%clk 0:02:21]} 10. Bd2 {[%clk 0:02:20]}  c4 {[%clk 0:02:19]} 11. Qg4 {[%clk 0:02:09]}  Rg8 {[%clk 0:02:19]} 12. Nf3 {[%clk 0:02:02]}  Qxa3 {[%clk 0:02:16]} 13. Be2 {[%clk 0:01:58]}  Qa2 {[%clk 0:02:15]} 14. Rc1 {[%clk 0:01:45]}  Qa5 {[%clk 0:02:15]} 15. O-O {[%clk 0:01:43]}  b5 {[%clk 0:02:13]} 16. Ra1 {[%clk 0:01:41]}  Qb6 {[%clk 0:02:14]} 17. Rfb1 {[%clk 0:01:41]}  a5 {[%clk 0:02:13]} 18. Qf4 {[%clk 0:01:36]}  Bb7 {[%clk 0:02:08]} 19. Nh2 {[%clk 0:01:33]}  b4 {[%clk 0:02:07]} 20. Ng4 {[%clk 0:01:30]}  b3 {[%clk 0:01:55]} 21. cxb3 {[%clk 0:01:26]}  cxb3 {[%clk 0:01:56]} 22. Ra4 {[%clk 0:01:27]}  Ba6 {[%clk 0:01:39]} 23. Bxa6 {[%clk 0:01:24]}  Rxa6 {[%clk 0:01:40]} 24. Qf3 {[%clk 0:01:05]}  Qb5 {[%clk 0:01:39]} 25. Ra3 {[%clk 0:01:02]}  a4 {[%clk 0:01:39]} 26. Bxh6 {[%clk 0:00:44]}  gxh6 {[%clk 0:00:44]} 27. Nf6+ {[%clk 0:00:44]}  Kd8 {[%clk 0:00:45]} 28. Nxg8 {[%clk 0:00:44]}  Nxg8 {[%clk 0:00:46]} 29. Qxf7 {[%clk 0:00:44]}  Nge7 {[%clk 0:00:46]} 30. Qf8+ {[%clk 0:00:36]}  Kd7 {[%clk 0:00:44]} 31. Qxh6 {[%clk 0:00:37]}  Qd3 {[%clk 0:00:44]} 32. Qc1 {[%clk 0:00:28]}  Nf5 {[%clk 0:00:40]} 33. Qf1 {[%clk 0:00:27]}  Qc4 {[%clk 0:00:22]} 34. Rbxb3 {[%clk 0:00:14]}  axb3 {[%clk 0:00:20]} 35. Rxa6 {[%clk 0:00:15]}  Qxf1+ {[%clk 0:00:15]} 36. Kxf1 {[%clk 0:00:16]}  Kc7 {[%clk 0:00:16]} 37. Ra3 {[%clk 0:00:16]}  b2 {[%clk 0:00:13]} 38. Rb3 {[%clk 0:00:16]}  Na5 {[%clk 0:00:10]} 39. Rxb2 {[%clk 0:00:16]}  Nc4 {[%clk 0:00:11]} 40. Re2 {[%clk 0:00:15]}  Kd7 {[%clk 0:00:10]} 41. g4 {[%clk 0:00:15]}  Nh4 {[%clk 0:00:07]} 42. h6 {[%clk 0:00:14]}  Ke7 {[%clk 0:00:07]} 43. f4 {[%clk 0:00:11]}  Kf7 {[%clk 0:00:06]} 44. Rh2 {[%clk 0:00:10]}  Nf3 {[%clk 0:00:03]} 45. Rh5 {[%clk 0:00:10]}  Kg8 {[%clk 0:00:02]} 46. f5 {[%clk 0:00:08]}  Nfd2+ {[%clk 0:00:01]} 47. Kg2 {[%clk 0:00:07]}  exf5 {[%clk 0:00:02]} 48. gxf5 {[%clk 0:00:06]}  Ne4 {[%clk 0:00:01]} 49. f6 {[%clk 0:00:03]}  Ne3+ {[%clk 0:00:02]} 50. Kf3 {[%clk 0:00:04]}  Nc4 {[%clk 0:00:02]} 51. h7+ {[%clk 0:00:04]}  Kh8 {[%clk 0:00:03]} 52. f7 {[%clk 0:00:05]}  Ned2+ {[%clk 0:00:02]} 53. Ke2 {[%clk 0:00:04]} 1-0


[Site "https://www.chess.com"]

[Event "Titled Tuesday Blitz November 30 2021"]
[White "Deac, Bogdan-Daniel"]
[Black "Saraci, Nderim"]
[WhiteFideId "1226380"]
[BlackFideId "6351921"]
[WhiteElo "2605"]
[BlackElo "2480"]
[Result "1-0"]
[Round "11"]
[TimeControl "180+1"]
[Date "2021.11.30"]
[WhiteClock "0:01:02"]
[BlackClock "0:00:04"]

1. e4 {[%clk 0:03:00]}  e5 {[%clk 0:02:59]} 2. Nf3 {[%clk 0:03:01]}  Nc6 {[%clk 0:02:59]} 3. Bb5 {[%clk 0:03:01]}  a6 {[%clk 0:02:58]} 4. Ba4 {[%clk 0:03:01]}  d6 {[%clk 0:02:55]} 5. O-O {[%clk 0:03:00]}  Bd7 {[%clk 0:02:51]} 6. d4 {[%clk 0:02:58]}  exd4 {[%clk 0:02:40]} 7. Nxd4 {[%clk 0:02:57]}  Nf6 {[%clk 0:02:37]} 8. Re1 {[%clk 0:02:52]}  Nxd4 {[%clk 0:02:33]} 9. Bxd7+ {[%clk 0:02:50]}  Qxd7 {[%clk 0:02:33]} 10. Qxd4 {[%clk 0:02:50]}  Be7 {[%clk 0:02:33]} 11. c4 {[%clk 0:02:50]}  O-O {[%clk 0:02:26]} 12. Nc3 {[%clk 0:02:50]}  b5 {[%clk 0:02:23]} 13. b3 {[%clk 0:02:47]}  bxc4 {[%clk 0:02:23]} 14. Qxc4 {[%clk 0:02:44]}  c6 {[%clk 0:02:22]} 15. Bb2 {[%clk 0:02:44]}  Rfe8 {[%clk 0:02:20]} 16. Rad1 {[%clk 0:02:39]}  Bf8 {[%clk 0:02:16]} 17. e5 {[%clk 0:02:36]}  d5 {[%clk 0:01:52]} 18. Qa4 {[%clk 0:02:35]}  Ng4 {[%clk 0:01:47]} 19. Nxd5 {[%clk 0:02:14]}  Qf5 {[%clk 0:00:47]} 20. Qf4 {[%clk 0:02:00]}  Qc2 {[%clk 0:00:21]} 21. Rd2 {[%clk 0:01:29]}  Qc5 {[%clk 0:00:18]} 22. Nc7 {[%clk 0:01:13]}  Red8 {[%clk 0:00:05]} 23. Nxa8 {[%clk 0:01:05]}  Nxf2 {[%clk 0:00:04]} 24. Rxf2 {[%clk 0:01:02]} 1-0


[Site "https://www.chess.com"]

[Event "Titled Tuesday Blitz November 30 2021"]
[White "Erdogdu, Mert"]
[Black "Perez Ponsa, Federico"]
[WhiteFideId "6301495"]
[BlackFideId "117927"]
[WhiteElo "2485"]
[BlackElo "2672"]
[Result "1/2-1/2"]
[Round "11"]
[TimeControl "180+1"]
[Date "2021.11.30"]
[WhiteClock "0:00:05"]
[BlackClock "0:00:03"]

1. e4 {[%clk 0:03:00]}  e5 {[%clk 0:02:54]} 2. Nf3 {[%clk 0:03:00]}  Nc6 {[%clk 0:02:55]} 3. Bc4 {[%clk 0:03:00]}  Bc5 {[%clk 0:02:55]} 4. c3 {[%clk 0:03:00]}  Nf6 {[%clk 0:02:56]} 5. d3 {[%clk 0:03:01]}  O-O {[%clk 0:02:56]} 6. O-O {[%clk 0:03:00]}  d5 {[%clk 0:02:56]} 7. exd5 {[%clk 0:03:01]}  Nxd5 {[%clk 0:02:57]} 8. a4 {[%clk 0:03:02]}  Nb6 {[%clk 0:02:52]} 9. Bb5 {[%clk 0:02:57]}  Bd6 {[%clk 0:02:42]} 10. a5 {[%clk 0:02:54]}  Nd7 {[%clk 0:02:34]} 11. a6 {[%clk 0:02:53]}  Rb8 {[%clk 0:02:34]} 12. Nbd2 {[%clk 0:02:47]}  Nb6 {[%clk 0:02:33]} 13. Ne4 {[%clk 0:02:42]}  f5 {[%clk 0:02:29]} 14. Neg5 {[%clk 0:02:28]}  Qe7 {[%clk 0:02:25]} 15. Be3 {[%clk 0:01:48]}  Nd8 {[%clk 0:01:55]} 16. axb7 {[%clk 0:01:39]}  Rxb7 {[%clk 0:01:52]} 17. Bxb6 {[%clk 0:01:13]}  Rxb6 {[%clk 0:01:20]} 18. Bc4+ {[%clk 0:01:13]}  Kh8 {[%clk 0:01:21]} 19. Rxa7 {[%clk 0:00:44]}  h6 {[%clk 0:01:20]} 20. Ra8 {[%clk 0:00:41]}  Bb7 {[%clk 0:01:02]} 21. Rxd8 {[%clk 0:00:38]}  Qxd8 {[%clk 0:00:57]} 22. Ne6 {[%clk 0:00:35]}  Qf6 {[%clk 0:00:57]} 23. Nxf8 {[%clk 0:00:34]}  Bxf8 {[%clk 0:00:55]} 24. b4 {[%clk 0:00:35]}  c5 {[%clk 0:00:54]} 25. bxc5 {[%clk 0:00:32]}  Bxc5 {[%clk 0:00:55]} 26. Re1 {[%clk 0:00:32]}  e4 {[%clk 0:00:55]} 27. dxe4 {[%clk 0:00:26]}  fxe4 {[%clk 0:00:54]} 28. Nd4 {[%clk 0:00:27]}  Rb2 {[%clk 0:00:41]} 29. Re2 {[%clk 0:00:26]}  Rxe2 {[%clk 0:00:32]} 30. Bxe2 {[%clk 0:00:24]}  e3 {[%clk 0:00:31]} 31. fxe3 {[%clk 0:00:23]}  Qg5 {[%clk 0:00:32]} 32. Bf3 {[%clk 0:00:21]}  Qxe3+ {[%clk 0:00:32]} 33. Kh1 {[%clk 0:00:22]}  Bxf3 {[%clk 0:00:17]} 34. Nxf3 {[%clk 0:00:22]}  Qxc3 {[%clk 0:00:17]} 35. h3 {[%clk 0:00:20]}  Qe3 {[%clk 0:00:15]} 36. Qe1 {[%clk 0:00:19]}  Qf4 {[%clk 0:00:12]} 37. Qe8+ {[%clk 0:00:18]}  Kh7 {[%clk 0:00:12]} 38. Qe1 {[%clk 0:00:19]}  Bd6 {[%clk 0:00:12]} 39. Qb1+ {[%clk 0:00:18]}  Kg8 {[%clk 0:00:11]} 40. Qa2+ {[%clk 0:00:18]}  Kh8 {[%clk 0:00:11]} 41. Qa8+ {[%clk 0:00:17]}  Kh7 {[%clk 0:00:11]} 42. Qa1 {[%clk 0:00:17]}  g5 {[%clk 0:00:11]} 43. Qb1+ {[%clk 0:00:15]}  Kg7 {[%clk 0:00:11]} 44. Qd1 {[%clk 0:00:14]}  Be7 {[%clk 0:00:09]} 45. Nd4 {[%clk 0:00:10]}  Qe4 {[%clk 0:00:05]} 46. Nf3 {[%clk 0:00:08]}  Bf6 {[%clk 0:00:05]} 47. g4 {[%clk 0:00:07]}  Qf4 {[%clk 0:00:03]} 48. Kg2 {[%clk 0:00:07]}  Qe4 {[%clk 0:00:03]} 49. Qd7+ {[%clk 0:00:07]}  Qe7 {[%clk 0:00:03]} 50. Qd3 {[%clk 0:00:06]}  Qb7 {[%clk 0:00:03]} 51. Qe2 {[%clk 0:00:05]}  Qb2 {[%clk 0:00:02]} 52. Qxb2 {[%clk 0:00:05]}  Bxb2 {[%clk 0:00:03]} 53. Nd2 {[%clk 0:00:05]}  Kf6 {[%clk 0:00:03]} 54. Ne4+ {[%clk 0:00:05]}  Ke5 {[%clk 0:00:03]} 55. Ng3 {[%clk 0:00:06]}  Kf4 {[%clk 0:00:03]} 56. Nf5 {[%clk 0:00:04]}  h5 {[%clk 0:00:03]} 57. Nd6 {[%clk 0:00:03]}  hxg4 {[%clk 0:00:01]} 58. hxg4 {[%clk 0:00:04]}  Kxg4 {[%clk 0:00:02]} 59. Nf7 {[%clk 0:00:04]}  Bf6 {[%clk 0:00:03]} 60. Nxg5 {[%clk 0:00:05]} 1/2-1/2


[Site "https://www.chess.com"]

[Event "Titled Tuesday Blitz November 30 2021"]
[White "Golubka, Petro"]
[Black "Poormosavi, Seyed Kian"]
[WhiteFideId "14114224"]
[BlackFideId "12585807"]
[WhiteElo "2392"]
[BlackElo "2134"]
[Result "0-1"]
[Round "11"]
[TimeControl "180+1"]
[Date "2021.11.30"]
[WhiteClock "0:00:07"]
[BlackClock "0:00:14"]

1. e4 {[%clk 0:02:47]}  c6 {[%clk 0:02:59]} 2. d4 {[%clk 0:02:44]}  d5 {[%clk 0:02:57]} 3. e5 {[%clk 0:02:44]}  Bf5 {[%clk 0:02:56]} 4. g4 {[%clk 0:02:42]}  Be4 {[%clk 0:02:51]} 5. f3 {[%clk 0:02:35]}  Bg6 {[%clk 0:02:50]} 6. e6 {[%clk 0:02:36]}  fxe6 {[%clk 0:02:42]} 7. h4 {[%clk 0:02:33]}  h5 {[%clk 0:02:42]} 8. Bd3 {[%clk 0:02:30]}  Bxd3 {[%clk 0:02:38]} 9. Qxd3 {[%clk 0:02:31]}  Qd6 {[%clk 0:02:39]} 10. Qg6+ {[%clk 0:02:31]}  Kd8 {[%clk 0:02:36]} 11. Qf7 {[%clk 0:02:21]}  Nd7 {[%clk 0:02:27]} 12. Qg6 {[%clk 0:02:14]}  hxg4 {[%clk 0:02:21]} 13. fxg4 {[%clk 0:02:15]}  e5 {[%clk 0:02:20]} 14. Qxd6 {[%clk 0:02:13]}  exd6 {[%clk 0:02:18]} 15. Nf3 {[%clk 0:02:14]}  Ngf6 {[%clk 0:02:18]} 16. g5 {[%clk 0:02:05]}  Ne4 {[%clk 0:02:18]} 17. Na3 {[%clk 0:02:02]}  Kc7 {[%clk 0:02:14]} 18. Be3 {[%clk 0:01:56]}  g6 {[%clk 0:02:10]} 19. O-O-O {[%clk 0:01:51]}  Bg7 {[%clk 0:02:10]} 20. c3 {[%clk 0:01:50]}  Raf8 {[%clk 0:02:09]} 21. Rh3 {[%clk 0:01:47]}  Rf5 {[%clk 0:01:55]} 22. Nc2 {[%clk 0:01:30]}  Rhf8 {[%clk 0:01:51]} 23. Nce1 {[%clk 0:01:30]}  exd4 {[%clk 0:01:41]} 24. cxd4 {[%clk 0:01:25]}  c5 {[%clk 0:01:40]} 25. Kc2 {[%clk 0:01:21]}  c4 {[%clk 0:01:38]} 26. a4 {[%clk 0:01:06]}  a6 {[%clk 0:01:36]} 27. b3 {[%clk 0:01:04]}  b5 {[%clk 0:01:35]} 28. axb5 {[%clk 0:01:01]}  axb5 {[%clk 0:01:36]} 29. Ra1 {[%clk 0:01:01]}  Kb7 {[%clk 0:01:28]} 30. h5 {[%clk 0:00:56]}  gxh5 {[%clk 0:01:21]} 31. b4 {[%clk 0:00:54]}  Nb8 {[%clk 0:01:08]} 32. Rxh5 {[%clk 0:00:37]}  Nc6 {[%clk 0:00:39]} 33. Rh7 {[%clk 0:00:34]}  R5f7 {[%clk 0:00:40]} 34. g6 {[%clk 0:00:33]}  Rc7 {[%clk 0:00:39]} 35. Rb1 {[%clk 0:00:32]}  Rg8 {[%clk 0:00:34]} 36. Ng2 {[%clk 0:00:29]}  Bf6 {[%clk 0:00:29]} 37. Rxc7+ {[%clk 0:00:26]}  Kxc7 {[%clk 0:00:29]} 38. Nf4 {[%clk 0:00:27]}  Ne7 {[%clk 0:00:30]} 39. Rg1 {[%clk 0:00:25]}  Kc6 {[%clk 0:00:30]} 40. Rg4 {[%clk 0:00:22]}  Nf5 {[%clk 0:00:30]} 41. Bg1 {[%clk 0:00:22]}  Ra8 {[%clk 0:00:29]} 42. Kb2 {[%clk 0:00:21]}  Ra4 {[%clk 0:00:29]} 43. Kc2 {[%clk 0:00:20]}  Ra2+ {[%clk 0:00:28]} 44. Kc1 {[%clk 0:00:19]}  Ra1+ {[%clk 0:00:23]} 45. Kc2 {[%clk 0:00:18]}  Rf1 {[%clk 0:00:23]} 46. Nh2 {[%clk 0:00:13]}  Ra1 {[%clk 0:00:18]} 47. Nf3 {[%clk 0:00:13]}  Ra3 {[%clk 0:00:18]} 48. Ne1 {[%clk 0:00:11]}  Rc3+ {[%clk 0:00:16]} 49. Kd1 {[%clk 0:00:11]}  Rg3 {[%clk 0:00:13]} 50. Rxg3 {[%clk 0:00:10]}  Nexg3 {[%clk 0:00:14]} 51. Nc2 {[%clk 0:00:10]}  Ne4 {[%clk 0:00:14]} 52. Ke2 {[%clk 0:00:10]}  Ng5 {[%clk 0:00:12]} 53. Nh5 {[%clk 0:00:09]}  Bh8 {[%clk 0:00:10]} 54. Be3 {[%clk 0:00:10]}  Ne6 {[%clk 0:00:11]} 55. Kf3 {[%clk 0:00:09]}  Nh4+ {[%clk 0:00:11]} 56. Kg4 {[%clk 0:00:08]}  Nxg6 {[%clk 0:00:11]} 57. Kf5 {[%clk 0:00:08]}  Nef8 {[%clk 0:00:12]} 58. Nf6 {[%clk 0:00:08]}  Ne7+ {[%clk 0:00:12]} 59. Kg5 {[%clk 0:00:07]}  Ne6+ {[%clk 0:00:13]} 60. Kg4 {[%clk 0:00:07]}  Bxf6 {[%clk 0:00:14]} 0-1


[Site "https://www.chess.com"]

[Event "Titled Tuesday Blitz November 30 2021"]
[White "Grigorjev, Iljya"]
[Black "Piesik, Piotr"]
[WhiteFideId "24159565"]
[BlackFideId "1136194"]
[WhiteElo "2124"]
[BlackElo "2336"]
[Result "1-0"]
[Round "11"]
[TimeControl "180+1"]
[Date "2021.11.30"]
[WhiteClock "0:01:41"]
[BlackClock "0:01:15"]

1. Nf3 {[%clk 0:03:00]}  g6 {[%clk 0:02:27]} 2. g3 {[%clk 0:03:00]}  Bg7 {[%clk 0:02:27]} 3. Bg2 {[%clk 0:03:01]}  Nf6 {[%clk 0:02:27]} 4. O-O {[%clk 0:03:01]}  O-O {[%clk 0:02:27]} 5. b3 {[%clk 0:03:02]}  c5 {[%clk 0:02:26]} 6. Bb2 {[%clk 0:03:02]}  d6 {[%clk 0:02:26]} 7. c4 {[%clk 0:03:03]}  Nc6 {[%clk 0:02:26]} 8. Nc3 {[%clk 0:03:02]}  e5 {[%clk 0:02:26]} 9. e3 {[%clk 0:02:58]}  Ne8 {[%clk 0:02:25]} 10. Nd5 {[%clk 0:02:55]}  f5 {[%clk 0:02:23]} 11. d4 {[%clk 0:02:33]}  e4 {[%clk 0:02:22]} 12. Ne1 {[%clk 0:02:31]}  cxd4 {[%clk 0:02:20]} 13. exd4 {[%clk 0:02:32]}  Nc7 {[%clk 0:02:17]} 14. Nxc7 {[%clk 0:02:22]}  Qxc7 {[%clk 0:02:18]} 15. f3 {[%clk 0:02:23]}  e3 {[%clk 0:01:55]} 16. f4 {[%clk 0:02:05]}  e2 {[%clk 0:01:40]} 17. Qxe2 {[%clk 0:02:05]}  Nxd4 {[%clk 0:01:40]} 18. Qd2 {[%clk 0:01:59]}  Qb6 {[%clk 0:01:35]} 19. Kh1 {[%clk 0:01:59]}  Be6 {[%clk 0:01:33]} 20. Rd1 {[%clk 0:01:59]}  Nc6 {[%clk 0:01:29]} 21. Bxg7 {[%clk 0:01:58]}  Kxg7 {[%clk 0:01:30]} 22. Qc3+ {[%clk 0:01:56]}  Kg8 {[%clk 0:01:27]} 23. Rxd6 {[%clk 0:01:56]}  Bf7 {[%clk 0:01:27]} 24. Nf3 {[%clk 0:01:49]}  Qc7 {[%clk 0:01:25]} 25. Rfd1 {[%clk 0:01:48]}  Rad8 {[%clk 0:01:24]} 26. c5 {[%clk 0:01:44]}  Rxd6 {[%clk 0:01:22]} 27. cxd6 {[%clk 0:01:45]}  Qa5 {[%clk 0:01:22]} 28. Qxa5 {[%clk 0:01:43]}  Nxa5 {[%clk 0:01:23]} 29. Ne5 {[%clk 0:01:44]}  Rd8 {[%clk 0:01:19]} 30. b4 {[%clk 0:01:41]}  Nc4 {[%clk 0:01:15]} 31. Nxf7 {[%clk 0:01:41]} 1-0


[Site "https://www.chess.com"]

[Event "Titled Tuesday Blitz November 30 2021"]
[White "Ibarra Jerez, Jose Carlos"]
[Black "Shahade, Gregory"]
[WhiteFideId "2226332"]
[BlackFideId "2009064"]
[WhiteElo "2626"]
[BlackElo "2663"]
[Result "0-1"]
[Round "11"]
[TimeControl "180+1"]
[Date "2021.11.30"]
[WhiteClock "0:01:36"]
[BlackClock "0:01:41"]

1. Nf3 {[%clk 0:03:00]}  Nf6 {[%clk 0:02:59]} 2. g3 {[%clk 0:03:01]}  g6 {[%clk 0:02:59]} 3. b3 {[%clk 0:02:59]}  Bg7 {[%clk 0:02:59]} 4. Bb2 {[%clk 0:03:00]}  b5 {[%clk 0:02:58]} 5. Bg2 {[%clk 0:02:59]}  Bb7 {[%clk 0:02:58]} 6. Na3 {[%clk 0:02:58]}  a6 {[%clk 0:02:55]} 7. c4 {[%clk 0:02:59]}  b4 {[%clk 0:02:48]} 8. Nc2 {[%clk 0:02:58]}  a5 {[%clk 0:02:43]} 9. O-O {[%clk 0:02:57]}  O-O {[%clk 0:02:43]} 10. d4 {[%clk 0:02:46]}  c5 {[%clk 0:02:37]} 11. d5 {[%clk 0:02:43]}  d6 {[%clk 0:02:36]} 12. Qd3 {[%clk 0:02:39]}  a4 {[%clk 0:02:36]} 13. Rab1 {[%clk 0:02:34]}  axb3 {[%clk 0:02:30]} 14. axb3 {[%clk 0:02:33]}  Ra2 {[%clk 0:02:30]} 15. Ba1 {[%clk 0:02:23]}  Nbd7 {[%clk 0:02:21]} 16. e4 {[%clk 0:02:21]}  Ng4 {[%clk 0:02:14]} 17. Nd2 {[%clk 0:02:10]}  Nge5 {[%clk 0:01:57]} 18. Qe2 {[%clk 0:02:05]}  Rxc2 {[%clk 0:01:55]} 19. f4 {[%clk 0:02:05]}  Ng4 {[%clk 0:01:49]} 20. Bxg7 {[%clk 0:01:58]}  Kxg7 {[%clk 0:01:48]} 21. Qd3 {[%clk 0:01:44]}  Rc3 {[%clk 0:01:46]} 22. Qe2 {[%clk 0:01:44]}  Ne3 {[%clk 0:01:45]} 23. Rf2 {[%clk 0:01:41]}  Nc2 {[%clk 0:01:42]} 24. Re1 {[%clk 0:01:36]}  Nxe1 {[%clk 0:01:41]} 0-1


[Site "https://www.chess.com"]

[Event "Titled Tuesday Blitz November 30 2021"]
[White "Indjic, Aleksandar"]
[Black "Dronavalli, Harika"]
[WhiteFideId "911925"]
[BlackFideId "5015197"]
[WhiteElo "2643"]
[BlackElo "2422"]
[Result "1-0"]
[Round "11"]
[TimeControl "180+1"]
[Date "2021.11.30"]
[WhiteClock "0:00:25"]
[BlackClock "0:00:23"]

1. d4 {[%clk 0:02:58]}  d5 {[%clk 0:02:59]} 2. c4 {[%clk 0:02:59]}  e6 {[%clk 0:02:57]} 3. Nc3 {[%clk 0:02:59]}  c6 {[%clk 0:02:58]} 4. e4 {[%clk 0:02:58]}  dxe4 {[%clk 0:02:57]} 5. Nxe4 {[%clk 0:02:58]}  Bb4+ {[%clk 0:02:57]} 6. Bd2 {[%clk 0:02:57]}  Qxd4 {[%clk 0:02:57]} 7. Bxb4 {[%clk 0:02:58]}  Qxe4+ {[%clk 0:02:57]} 8. Ne2 {[%clk 0:02:58]}  Na6 {[%clk 0:02:54]} 9. Bf8 {[%clk 0:02:56]}  Ne7 {[%clk 0:02:54]} 10. Bxg7 {[%clk 0:02:52]}  Nb4 {[%clk 0:02:45]} 11. Bxh8 {[%clk 0:01:45]}  e5 {[%clk 0:02:28]} 12. Bf6 {[%clk 0:01:02]}  Nd3+ {[%clk 0:02:05]} 13. Kd2 {[%clk 0:00:59]}  Bf5 {[%clk 0:02:02]} 14. f3 {[%clk 0:00:54]}  Qxc4 {[%clk 0:01:37]} 15. Qb3 {[%clk 0:00:53]}  Qc5 {[%clk 0:01:18]} 16. Qxb7 {[%clk 0:00:51]}  Rd8 {[%clk 0:01:02]} 17. Qxe7+ {[%clk 0:00:50]}  Qxe7 {[%clk 0:01:02]} 18. Bxe7 {[%clk 0:00:50]}  Kxe7 {[%clk 0:01:02]} 19. Ke3 {[%clk 0:00:46]}  Nxb2 {[%clk 0:01:00]} 20. Ng3 {[%clk 0:00:41]}  Bg6 {[%clk 0:00:59]} 21. Be2 {[%clk 0:00:38]}  f5 {[%clk 0:00:59]} 22. Kf2 {[%clk 0:00:38]}  Rd2 {[%clk 0:00:57]} 23. Rhc1 {[%clk 0:00:36]}  f4 {[%clk 0:00:50]} 24. Ke1 {[%clk 0:00:35]}  Rd6 {[%clk 0:00:32]} 25. Ne4 {[%clk 0:00:34]}  Bxe4 {[%clk 0:00:26]} 26. fxe4 {[%clk 0:00:35]}  Na4 {[%clk 0:00:26]} 27. Rab1 {[%clk 0:00:33]}  Nb6 {[%clk 0:00:26]} 28. a4 {[%clk 0:00:29]}  Rh6 {[%clk 0:00:23]} 29. a5 {[%clk 0:00:28]}  Nd7 {[%clk 0:00:23]} 30. h3 {[%clk 0:00:28]}  Rg6 {[%clk 0:00:23]} 31. Bf3 {[%clk 0:00:25]} 1-0


[Site "https://www.chess.com"]